[Event "4th Tata Steel India Blitz Open 2022"]
[Site "Kolkota"]
[Date "2022.12.03"]
[Round "1.1"]
[White "Rameshbabu, Praggnanandhaa"]
[Black "So, Wesley"]
[Result "1-0"]
[ECO "D79"]
[WhiteElo "2678"]
[BlackElo "2760"]
[Annotator "TA"]
[PlyCount "73"]
[EventDate "2022.11.29"]
[EventType "tourn"]
[EventCountry "IND"]
[SourceTitle "playchess.com"]
[Source "ChessBase"]
[SourceQuality "1"]
[TimeControl "180+2"]

{[%evp 21,73,15,25,34,42,24,21,0,11,11,4,8,23,20,10,22,13,0,0,0,0,0,0,0,25,32,144,150,150,156,158,170,152,113,299,286,479,478,553,462,458,451,416,0,405,0,399,277,280,153,5704,5306,1882,1218]} 1. Nf3 {[%emt 0:00:02]} c5 {[%emt 0:00:01]} 2. g3 {[%emt 0:00:08]} Nc6 {[%emt 0:00:04]} 3. Bg2 {[%emt 0:00:01]} g6 {[%emt 0:00:03]} 4. c3 {[%emt 0:00:04]} Bg7 {[%emt 0:00:01]} 5. d4 {[%emt 0:00:01]} cxd4 {[%emt 0:00:01]} 6. cxd4 {[%emt 0:00:02]} d5 {[%emt 0:00:02]} 7. Nc3 {[%emt 0:00:01]} Nf6 {[%emt 0:00:04]} 8. Ne5 {[%emt 0:00:02]} O-O {[%emt 0:00:08]} 9. Nxc6 {[%emt 0:00:05]} bxc6 {[%emt 0:00:02]} 10. O-O {[%emt 0:00:02]} Bf5 {[%emt 0:00:18]} 11. Bf4 {[%emt 0:00:06]} Nh5 {[%emt 0:00:06]} 12. Bg5 $5 {[%emt 0:00:07][%mdl 4] Exploring less charted territory. D79: Fianchetto Grünfeld: Symmetrical Variation (6 0-0 c6 7 cxd5 cxd5).} h6 {[%emt 0:00:14]} 13. Be3 {[%emt 0:00:01]} c5 {[%emt 0:00:20] [#]} 14. Nxd5 $146 {[%emt 0:00:57] The position is equal.} (14. dxc5 {[#]} d4 $1 15. Bxd4 (15. Bxa8 Qxa8 16. Bxd4 Rd8 $17) 15... Qxd4 16. Qxd4 Bxd4 17. Bxa8 Rxa8 $15) (14. Qd2 {simplifies} Kh7 15. Na4 cxd4 16. Bxd4 Bxd4 17. Qxd4 Nf6 18. Nc3) ({Predecessor:} 14. Qd2 Kh7 15. Na4 c4 16. Nc3 Be6 17. f3 f5 18. Bf2 Nf6 19. b3 Rc8 20. Na4 {1-0 (40) Bocharov,D (2425)-Rogovoi,M (2208) St Petersburg 2001}) 14... e6 {[%emt 0:00:01][%cal Be7e6,Be6e5,Be5e4,Be4e3][%mdl 32]} 15. Nf4 $1 {[%emt 0:00:10]} Nxf4 {[%emt 0:00:02]} 16. Bxf4 {[%emt 0:00:06] [#] aiming for e4.} (16. gxf4 cxd4 17. Bxa8 Qxa8 $17) 16... cxd4 $1 {[%emt 0:00:02][%cal Oe6e5]} 17. Bxa8 {[%emt 0:00:24]} Qxa8 {[%emt 0:00:00]} 18. f3 {[%emt 0:00:01]} e5 {[%emt 0:00:06] Against g4} 19. Bd2 {[%emt 0:00:01]} e4 {[%emt 0:00:03]} 20. Rc1 {[%emt 0:00:15][%cal Ba1c1,Bc1c3,Bc3b3][%mdl 32]} e3 {[%emt 0:01:00]} 21. Bb4 {[%emt 0:00:02]} Rb8 {[%emt 0:00:03]} 22. Ba3 {[%emt 0:00:22]} d3 {[%emt 0:00:04]} 23. g4 {[%emt 0:00:16][%cal Bg3g4,Bg4f5][%mdl 32]} Bxb2 {[%emt 0:00:28]} (23... d2 $1 $14 24. gxf5 dxc1=Q 25. Qxc1 Rc8 26. Qxe3 Qd5) 24. gxf5 $16 {[%emt 0:00:11]} (24. Bxb2 $6 Rxb2 25. Qa4 (25. gxf5 $2 dxe2 26. Qd6 exf1=B $19) 25... dxe2 $11) 24... Bxa3 {[%emt 0:00:01]} 25. Rc3 $36 {[%emt 0:00:09][%mdl 2048] White is in control.} dxe2 {[%emt 0:00:06]} 26. Qxe2 {[%emt 0:00:01]} (26. Rxa3 exd1=Q 27. Rxd1 Qxf3 28. Rad3 Rb2 29. Rd8+ Kg7 30. f6+ Kh7) 26... Bb4 {[%emt 0:00:20]} 27. Rb3 {[%emt 0:00:01] Threatens to win with fxg6.} (27. Rxe3 Bc5 28. fxg6 Rf8 $16) 27... Ba5 $2 {[%emt 0:00:09]} (27... g5 $16) 28. fxg6 $18 {[%emt 0:00:05]} (28. Qxe3 Bb6 29. Rxb6 Rxb6 $11) 28... fxg6 {[%emt 0:00:05]} (28... Rxb3 {might work better.} 29. gxf7+ (29. axb3 Qd5 $18) 29... Kf8) 29. Qc4+ {[%emt 0:00:06]} (29. Rxe3 Bb6 30. Kg2 Bxe3 31. Qxe3 Qd5 $11) 29... Kh8 {[%emt 0:00:02]} 30. Qd4+ {[%emt 0:00:04]} (30. Rxe3 Bb6 31. Qf4 Re8 $11) 30... Kh7 {[%emt 0:00:00]} 31. Qd7+ {[%emt 0:00:07]} (31. Rxe3 Rb7 $11) (31. Qxe3 Rg8 32. Qe4 Bb6+ 33. Kh1 Qc8 $18) 31... Kh8 32. Qd4+ {[%emt 0:00:03]} (32. Rxe3 Bb6 33. Qe6 Rb7 $11) 32... Kh7 33. Qd7+ {[%emt 0:00:01]} (33. Rxe3 Rb7 $11) (33. Qxe3 Rg8 $18) 33... Kh8 {[%emt 0:00:02]} 34. Qe6 {[%emt 0:00:01] White wants to mate with Qe5+. The board is on fire.} ({Inferior is} 34. Rxe3 Bb6 35. Qe6 Rb7 $11) ({But not} 34. Qd4+ Kh7 $18) 34... Rxb3 {[%emt 0:00:01]} 35. axb3 {[%emt 0:00:01] Black must now prevent Qe5+.} Qf8 $2 {[%emt 0:00:08]} (35... Qd8 $16) 36. Qe5+ {[%emt 0:00:02]} (36. Qxe3 $2 {too greedy.} Bb6 $19) 36... Kh7 {[%emt 0:00:02]} 37. Qxa5 {[%emt 0:00:02] Weighted Error Value: White=0.77/Black=0.31} 1-0

[Event "4th Tata Steel India Blitz Open 2022"]
[Site "Kolkota"]
[Date "2022.12.03"]
[Round "1.2"]
[White "Gukesh D"]
[Black "Mamedyarov, Shakhriyar"]
[Result "0-1"]
[ECO "A20"]
[WhiteElo "2725"]
[BlackElo "2741"]
[Annotator "TA"]
[PlyCount "110"]
[EventDate "2022.11.29"]
[EventType "tourn"]
[EventCountry "IND"]
[SourceTitle "playchess.com"]
[Source "ChessBase"]
[SourceQuality "1"]
[TimeControl "180+2"]

{[%evp 9,110,2,0,0,101,19,14,-1,12,0,20,0,15,-1,0,-24,0,0,5,6,0,0,24,27,72,16,13,18,27,15,76,0,6,0,42,8,57,82,75,22,55,23,28,0,0,4,61,23,125,137,122,52,47,47,47,42,47,-78,-69,-85,-85,-83,-85,-75,-74,-146,-154,-154,-165,-290,-213,-203,-210,-389,-380,-484,-446,-456,-434,-463,-348,-682,-664,-1596,-2324,-1188,-1109,-2035,-1516,-1057,-986,-764,-1095,-12827,-12828,-12830,-12827,-12829,-12830,-12830,-12831,-1681,-1595]} 1. c4 {[%emt 0:00:02]} e5 {[%emt 0:00:02]} 2. g3 {[%emt 0:00:02]} Nf6 {[%emt 0:00:02]} 3. Bg2 {[%emt 0:00:01]} Bc5 {[%emt 0:00:02]} 4. d3 {[%emt 0:00:03]} O-O {[%emt 0:00:01]} 5. Nf3 {[%emt 0:00:01]} Re8 {[%emt 0:00:02]} 6. O-O {[%emt 0:00:03][%cal Of3e5] A20: English Opening: 1...e5.} c6 {[%emt 0:00:02] [#]} (6... d6 $11) 7. Nc3 {[%emt 0:00:02]} (7. Nxe5 $1 $16 {[%mdl 512] Strongly threatening d4.} Bb6 8. Nf3) 7... d6 $11 {[%emt 0:00:10]} 8. b3 {[%emt 0:00:04] The position is equal. 8.d4 is the modern continuation.} a5 {[%emt 0:00:06] [#]} 9. Bb2 $146 {[%emt 0:00:01]} ({Predecessor:} 9. e3 Bf5 10. h3 h6 11. Bb2 Bb6 12. Kh2 Nbd7 13. Qd2 Nc5 14. e4 Bd7 15. Ng1 {1-0 (44) Giri,A (2776)-Anand,V (2757) Kolkata 2019}) 9... Bf5 {[%emt 0:00:02]} 10. e3 {[%emt 0:00:03]} Nbd7 {[%emt 0:00:07]} 11. h3 {[%emt 0:00:02]} h6 {[%emt 0:00:01]} 12. Qd2 {[%emt 0:00:06]} Bb4 {[%emt 0:00:20][%cal Oa5a4]} 13. a3 {[%emt 0:00:08] Prevents a4.} Bxc3 {[%emt 0:00:07]} 14. Qxc3 {[%emt 0:00:03]} Nc5 {[%emt 0:00:01]} 15. e4 {[%emt 0:00:22]} Bd7 {[%emt 0:00:09]} 16. Qc2 {[%emt 0:00:15]} Ne6 {[%emt 0:00:32]} 17. Kh2 {[%emt 0:00:02]} (17. d4 $16) 17... c5 {[%emt 0:00:01]} 18. a4 {[%emt 0:00:27] Inhibits b5.} b6 {[%emt 0:00:15]} 19. Nh4 {[%emt 0:00:03]} g6 {[%emt 0:00:16]} (19... Nd4 $11 20. Qd1 Qe7) 20. Rae1 {[%emt 0:00:19]} ({Better is} 20. Qd2 $16) 20... Nh5 {[%emt 0:00:08]} 21. Nf3 {[%emt 0:00:11]} Rf8 {[%emt 0:00:08]} 22. Qd2 {[%emt 0:00:03]} Kg7 {[%emt 0:00:13]} (22... g5 $11 {is superior.}) 23. Ng1 $14 {[%emt 0:00:04]} (23. Bc1 Rh8 $11) 23... Kh7 {[%emt 0:00:15]} 24. Bc1 {[%emt 0:00:07]} (24. Ne2 $16) 24... Qg5 {[%emt 0:00:03]} 25. Qd1 {[%emt 0:00:04]} Qe7 {[%emt 0:00:03]} (25... Qf6 {simplifies} 26. Ne2 Rae8 27. Bd2 Qg7) 26. f4 {[%emt 0:00:09]} exf4 {[%emt 0:00:03]} 27. gxf4 {[%emt 0:00:01]} (27. g4 {simplifies} Nhg7 28. d4 cxd4 29. Ne2) 27... Qh4 {[%emt 0:00:04]} (27... Nd4 28. Ne2 $14 (28. Nf3 Ne6 $11)) (27... Rae8 $11) 28. Qg4 {[%emt 0:00:39]} Qxg4 {[%emt 0:00:06]} (28... Qe7 $1 $11) 29. hxg4 $16 {[%emt 0:00:02]} Nf6 {[%emt 0:00:09][%cal Bh5f6,Bf6g4,Bg4e5,Be5d3,Bd3c1][%mdl 32]} 30. g5 {[%emt 0:00:20]} (30. Kg3 $1 $16) 30... hxg5 $1 $14 {[%emt 0:00:02]} 31. fxg5 {[%emt 0:00:02]} Ng4+ {[%emt 0:00:01]} 32. Kg3 $1 {[%emt 0:00:02]} Ne5 33. Nf3 {[%emt 0:00:06]} (33. Rd1 $1 $14 {keeps the upper hand.}) 33... Nxd3 $17 {[%emt 0:00:03] Black is much more active. Pair of Knights! Black converts the advantage convincingly.} 34. Re3 {[%emt 0:00:06] [#]} Nxc1 {[%emt 0:00:02]} ({Don't do} 34... Nef4 35. Rh1+ Kg8 {[#]} 36. Bb2 $1 Nxb2 37. Kxf4 $16) 35. Rxc1 {[%emt 0:00:01]} Rad8 {[%emt 0:00:02]} 36. Rd1 {[%emt 0:00:02]} Bc6 {[%emt 0:00:02]} 37. Red3 {[%emt 0:00:05]} ({White should play} 37. Bh3) 37... Bxe4 {[%emt 0:00:06]} 38. Rxd6 {[%emt 0:00:01]} Kg7 {[%emt 0:00:13]} 39. Kg4 {[%emt 0:00:02]} (39. Ne5 $142 Bc2 40. R1d5 (40. Rxd8 $2 Rxd8 41. Rxd8 Nxd8 $19)) 39... Bf5+ {[%emt 0:00:07]} 40. Kg3 {[%emt 0:00:01]} Bc2 {[%emt 0:00:01]} 41. Rxd8 {[%emt 0:00:04]} (41. R1d5 {keeps fighting.}) 41... Rxd8 $19 {[%emt 0:00:01]} ({Worse is} 41... Nxd8 42. Rd6 $17) 42. Rxd8 {[%emt 0:00:01]} Nxd8 {[%emt 0:00:01][%mdl 4096] Endgame KBN-KBN} 43. Nd2 {[%emt 0:00:01]} Ne6 {[%emt 0:00:00]} 44. Kg4 {[%emt 0:00:03]} Nd4 {[%emt 0:00:01]} 45. Bd5 $2 {[%emt 0:00:03]} (45. Kf4) 45... Nxb3 {[%emt 0:00:02] Black is clearly winning.} 46. Nf3 {[%emt 0:00:02]} Bd1 {[%emt 0:00:09]} 47. Kf4 {[%emt 0:00:01]} Bxf3 {[%emt 0:00:02]} 48. Kxf3 {[%emt 0:00:01] KB-KN} Nd4+ {[%emt 0:00:02]} 49. Kf4 {[%emt 0:00:02]} Kf8 {[%emt 0:00:01]} 50. Ke5 {[%emt 0:00:03]} Ke7 {[%emt 0:00:00]} 51. Kf4 {[%emt 0:00:02]} Ne6+ {[%emt 0:00:04]} 52. Kg4 {[%emt 0:00:01]} Kd6 {[%emt 0:00:01]} 53. Kh4 {[%emt 0:00:02] Inhibits b5.} Ke5 {[%emt 0:00:02]} 54. Kg4 {[%emt 0:00:01]} f6 {[%emt 0:00:04]} 55. gxf6 {[%emt 0:00:03]} Kxf6 {[%emt 0:00:01] Weighted Error Value: White=0.69/Black=0.27 (precise)} 0-1

[Event "4th Tata Steel India Blitz Open 2022"]
[Site "Kolkota"]
[Date "2022.12.03"]
[Round "1.3"]
[White "Nihal Sarin"]
[Black "Nakamura, Hikaru"]
[Result "1-0"]
[ECO "D02"]
[WhiteElo "2670"]
[BlackElo "2768"]
[Annotator "TA"]
[PlyCount "173"]
[EventDate "2022.11.29"]
[EventType "tourn"]
[EventCountry "IND"]
[SourceTitle "playchess.com"]
[Source "ChessBase"]
[SourceQuality "1"]
[TimeControl "180+2"]

{[%evp 23,173,0,0,0,7,0,0,0,16,11,14,5,22,22,54,25,25,27,47,31,48,24,60,53,72,47,47,55,53,50,132,29,66,18,11,13,18,18,16,12,12,5,80,82,80,76,93,64,104,59,67,56,96,89,89,0,0,0,0,0,13,0,0,0,12,12,12,-7,-8,-13,0,-10,0,-163,0,0,0,-8,-8,-8,-8,-8,-8,-8,-8,-23,-8,-23,-5,-8,-5,-796,-789,-764,-736,-729,-8,-29941,-51,-29941,-1039,-1516,-729,-432,-418,-324,-51,-721,-679,-2062,-1812,-29959,-29965,-29961,-29964,-29969,-29970,-29968,0,0,0,0,0,0,0,0,0,0,0,0,35,0,0,0,0,0,0,0,0,0,0,0,0,0,14,14,29971,29972,29982,29983,29987,29988]} 1. d4 {[%emt 0:00:02]} Nf6 {[%emt 0:00:01]} 2. Nf3 {[%emt 0:00:02]} d5 {[%emt 0:00:09]} 3. c3 {[%emt 0:00:01]} a5 {[%emt 0:00:02]} 4. Bf4 {[%emt 0:00:05]} Bf5 {[%emt 0:00:01]} 5. e3 {[%emt 0:00:05]} e6 {[%emt 0:00:02]} 6. a3 {[%emt 0:00:13]} c6 {[%emt 0:00:07]} 7. c4 {[%emt 0:00:03]} Nbd7 {[%emt 0:00:21]} 8. Nc3 {[%emt 0:00:02]} Be7 {[%emt 0:00:04]} 9. h3 {[%emt 0:00:02]} h6 {[%emt 0:00:03]} 10. Be2 {[%emt 0:00:05]} dxc4 {[%emt 0:00:01]} 11. Bxc4 {[%emt 0:00:04]} O-O {[%emt 0:00:07]} 12. O-O {[%emt 0:00:02]} Nd5 {[%emt 0:00:11]} 13. Bh2 {[%emt 0:00:03]} b5 {[%emt 0:00:35]} 14. Bd3 {[%emt 0:00:44]} Bxd3 {[%emt 0:00:11]} 15. Qxd3 {[%emt 0:00:03]} Qb6 {[%emt 0:00:05]} 16. Rfc1 {[%emt 0:00:18]} Rac8 {[%emt 0:00:10]} 17. Qe2 {[%emt 0:00:17]} Qb7 {[%emt 0:00:04]} 18. Ne4 {[%emt 0:00:20]} Rfd8 {[%emt 0:00:11]} 19. Nd6 {[%emt 0:00:08]} Bxd6 {[%emt 0:00:01]} 20. Bxd6 {[%emt 0:00:02]} a4 {[%emt 0:00:10]} 21. Nd2 {[%emt 0:00:05]} N7b6 {[%emt 0:00:06]} 22. Bc5 {[%emt 0:00:03]} Nf6 {[%emt 0:00:02]} 23. Rc2 {[%emt 0:00:06]} Nbd7 {[%emt 0:00:09]} 24. Be7 {[%emt 0:00:06]} Re8 {[%emt 0:00:02]} 25. Bxf6 {[%emt 0:00:02]} Nxf6 {[%emt 0:00:01]} 26. Rac1 {[%emt 0:00:00]} e5 {[%emt 0:00:01]} ({Black should play} 26... Qb6 $14) 27. Nf3 {[%emt 0:00:07]} (27. dxe5 $1 $16 Rxe5 28. Nf3) 27... Nd7 $11 {[%emt 0:00:03]} 28. dxe5 {[%emt 0:00:23]} (28. Rc3 $14 {feels stronger.}) 28... Nxe5 $11 {[%emt 0:00:01]} 29. Nxe5 {[%emt 0:00:02]} Rxe5 {[%emt 0:00:01]} 30. Qf3 {[%emt 0:00:01]} Re6 {[%emt 0:00:01]} 31. Rd2 {[%emt 0:00:03]} Qc7 {[%emt 0:00:21]} 32. Rcd1 {[%emt 0:00:04]} Re7 (32... Qe5 $11 {keeps the balance.}) 33. Rd6 $16 {[%emt 0:00:02]} c5 {[%emt 0:00:03]} 34. Qd5 {[%emt 0:00:02]} b4 {[%emt 0:00:03]} 35. Qc4 {[%emt 0:00:02]} Rb8 {[%emt 0:00:05]} 36. Qa6 {[%emt 0:00:10]} (36. R6d5 {seems wilder.} Rc8 37. axb4 cxb4 38. Qxb4 Rb8 39. Qxa4 Rxb2 40. Qa3) 36... bxa3 {[%emt 0:00:18]} 37. bxa3 {[%emt 0:00:01]} Qc8 {[%emt 0:00:05]} 38. Qxa4 {[%emt 0:00:04]} c4 {[%emt 0:00:01]} 39. Rd8+ {[%emt 0:00:12]} (39. Rc6 $16 Rc7 40. Rdd6) 39... Qxd8 $11 {[%emt 0:00:01]} 40. Rxd8+ {[%emt 0:00:00]} Rxd8 {[%emt 0:00:02]} 41. Qxc4 {[%emt 0:00:01]} Ra8 {[%emt 0:00:00]} 42. a4 {[%emt 0:00:04]} Rea7 {[%emt 0:00:01]} 43. g4 {[%emt 0:00:02]} h5 {[%emt 0:00:03]} 44. Kg2 {[%emt 0:00:02]} Rxa4 {[%emt 0:00:01]} 45. Qd5 {[%emt 0:00:02]} hxg4 {[%emt 0:00:02]} 46. h4 {[%emt 0:00:03]} R4a6 {[%emt 0:00:09]} 47. Qe4 {[%emt 0:00:01]} Rd8 {[%emt 0:00:03]} (47... Rb8 {feels hotter.} 48. Kg3 Rf6 49. Qc2 Rb4) 48. h5 $2 {[%emt 0:00:02]} (48. Kg3 $11 {and White has nothing to worry.}) 48... Rh6 $2 {[%emt 0:00:03]} (48... Rf6 $1 $19 {Strongly threatening ...Rd2.} 49. Qb4 Rd5) 49. Qxg4 $11 {[%emt 0:00:01]} Rf6 {[%emt 0:00:03]} 50. Qb4 {[%emt 0:00:04]} Rd5 {[%emt 0:00:05]} 51. Qb8+ {[%emt 0:00:01]} Kh7 {[%emt 0:00:01]} 52. Qb1+ {[%emt 0:00:02]} Kh6 {[%emt 0:00:00]} 53. f4 {[%emt 0:00:02]} Rxh5 {[%emt 0:00:02]} 54. Qb8 {[%emt 0:00:02]} Kh7 {[%emt 0:00:01]} 55. Qb1+ {[%emt 0:00:01]} Rg6+ {[%emt 0:00:01]} 56. Kf3 {[%emt 0:00:02]} f5 {[%emt 0:00:01]} 57. Qb4 $2 {[%emt 0:00:05][%mdl 8192]} (57. Qb5 $11) 57... Rh3+ $19 {[%emt 0:00:02]} 58. Ke2 {[%emt 0:00:00]} Re6 {[%emt 0:00:02]} 59. Qc5 {[%emt 0:00:03]} Rhxe3+ $2 {[%emt 0:00:08]} (59... Kg6 $19 {Threatens to win with ...Rexe3+.} 60. Kd2 Rhxe3) 60. Kf2 $2 {[%emt 0:00:01][%mdl 8192]} (60. Qxe3 $11 Rxe3+ 61. Kxe3 Kg6 62. Kf3 Kf7 63. Kf2 Ke6 64. Ke3 Kd5 65. Kd3 g6 66. Ke3 Kc4 67. Ke2 Kd4 68. Kf3 Kd3 69. Kg2 Ke4 70. Kg3 Ke3 71. Kg2 Kxf4 72. Kf2 Ke4 73. Kg3 f4+ 74. Kg2 Ke3 75. Kf1 f3 76. Ke1 g5 77. Kf1 g4 78. Kg1 g3 79. Kh1 g2+ 80. Kg1 Ke2 81. Kh2 Kf2 82. Kh3 g1=Q 83. Kh4 Qg6 84. Kh3 Qh5#) 60... Re2+ {[%emt 0:00:01]} 61. Kf1 $2 {[%emt 0:00:01][%mdl 8192]} (61. Kf3 $15) 61... Kg6 {[%emt 0:00:02]} (61... Re1+ $142 62. Kg2 Kg6 63. Kg3 R1e3+ 64. Kh2 R6e4 65. Kg2 Re2+ 66. Kf1 Re1+ 67. Kf2 Rd1 68. Kg3 Rd3+ 69. Kf2 Rxf4+ 70. Ke2 Rdd4 71. Qc7 Kh6 72. Qc6+ Kh5 73. Qh1+ Rh4 74. Qf3+ Kh6 75. Qg3 Rhe4+ 76. Kf1 Rd1+ 77. Kf2 Rd2+ 78. Kf1 g5 79. Qc3 Red4 80. Qc8 Kh5 81. Ke1 Kg4 82. Qc3 f4 83. Qxd2 Rxd2 84. Kxd2 Kf3 85. Kd1 g4 86. Kc2 g3 87. Kd3 g2 88. Kd4 Kg4 89. Kd5 f3 90. Ke5 g1=Q 91. Kf6 f2 92. Kg6 f1=Q 93. Kg7 Kh3+ 94. Kh6 Qf8+ 95. Kh7 Qgg8#) 62. Qg1+ $19 {[%emt 0:00:02]} Kf7 {[%emt 0:00:01]} 63. Qa7+ {[%emt 0:00:01]} Re7 $1 {[%emt 0:00:00]} 64. Qc5 {[%emt 0:00:02] [#]} g6 $2 {[%emt 0:00:10]} (64... Re1+ $1 $19 65. Kf2 R7e2+ 66. Kg3 Re3+ 67. Kg2 R1e2+ 68. Kf1 Kg6) 65. Qd5+ $2 {[%emt 0:00:01][%mdl 8192]} (65. Qc4+ $15 R2e6 66. Kf2) 65... Kg7 $19 {[%emt 0:00:00]} 66. Qd4+ {[%emt 0:00:01]} Kh7 {[%emt 0:00:01]} 67. Qf6 {[%emt 0:00:03]} R2e4 {[%emt 0:00:01]} 68. Kg2 {[%emt 0:00:02]} Rd7 {[%emt 0:00:04]} 69. Qc6 {[%emt 0:00:02]} Rd2+ {[%emt 0:00:02]} 70. Kg3 {[%emt 0:00:02]} Rd3+ $2 {[%emt 0:00:05]} (70... Kh6 {mates} 71. Qc5 Rd3+ 72. Kg2 Rxf4 73. Qe5 Rd2+ 74. Kg3 Rb4 75. Qf6 Rbd4 76. Qf8+ Kh5 77. Kf3 R2d3+ 78. Ke2 Kg4 79. Qb8 f4 80. Qb1 Rd2+ 81. Ke1 Rd1+ 82. Qxd1+ Rxd1+ 83. Kxd1 f3 84. Kd2 Kf4 85. Kd1 g5 86. Kd2 g4 87. Ke1 Ke3 88. Kf1 g3 89. Ke1 g2 90. Kd1 Kd3 91. Kc1 Kc3 92. Kb1 g1=Q+ 93. Ka2 Qf2+ 94. Kb1 Qb2#) 71. Kh4 $11 {[%emt 0:00:03]} Rd1 {[%emt 0:00:03]} 72. Kg5 {[%emt 0:00:03]} Rde1 {[%emt 0:00:03]} 73. Qxg6+ {[%emt 0:00:02]} Kh8 {[%emt 0:00:00]} 74. Qf6+ {[%emt 0:00:03]} Kg8 {[%emt 0:00:01]} 75. Qg6+ {[%emt 0:00:01]} Kf8 {[%emt 0:00:02]} 76. Qxf5+ {[%emt 0:00:01]} Kg8 {[%emt 0:00:00]} 77. Qg6+ {[%emt 0:00:01]} (77. Kf6 {is interesting.} Re7 78. Qg4+ Kh7 79. f5) 77... Kf8 {[%emt 0:00:01]} 78. Qf6+ {[%emt 0:00:03]} Kg8 {[%emt 0:00:01]} 79. Qg6+ {[%emt 0:00:02]} Kf8 {[%emt 0:00:01]} 80. Qd6+ {[%emt 0:00:01]} Kf7 {[%emt 0:00:06]} 81. Qd5+ {[%emt 0:00:03]} Kg7 {[%emt 0:00:01]} 82. Qd7+ {[%emt 0:00:03]} Re7 {[%emt 0:00:01]} 83. Qd4+ {[%emt 0:00:01]} Kf7 {[%emt 0:00:00]} 84. f5 {[%emt 0:00:03]} Re8 $2 {[%emt 0:00:05][%mdl 8192]} (84... R1e5 $11) 85. Qd5+ {[%emt 0:00:02]} Kf8 {[%emt 0:00:01] [#]} 86. Kf6 $1 {[%emt 0:00:02]} R1e7 {[%emt 0:00:04]} 87. Qc5 {[%emt 0:00:03]} 1-0